[Event "II Llinars Open 2022"]
[Site "Llinars del Valles"]
[Date "2022.06.28"]
[Round "4.7"]
[White "Munoz, Miguel"]
[Black "Diaz Perez, Michel Alejandro"]
[Result "1-0"]
[ECO "B67"]
[WhiteElo "2421"]
[BlackElo "2439"]
[Annotator "TA"]
[PlyCount "105"]
[EventDate "2022.06.24"]
[EventType "swiss"]
[EventCountry "ESP"]
[SourceTitle "playchess.com"]
[Source "ChessBase"]
[SourceQuality "1"]
[TimeControl "5400+30"]

{[%evp 20,105,18,0,0,0,0,-52,-50,-57,-62,-80,-70,-112,-119,-114,-68,-166,-112,-143,-142,-124,-111,-106,-94,-173,-129,-183,-129,-228,-37,-48,-43,-68,-70,-128,-127,-117,-111,-125,-105,-64,-89,-128,-113,-125,-99,-109,-95,-96,-60,-71,308,315,317,312,289,289,372,372,348,368,328,358,487,483,1492,1450,1190,639,5841,3286,29991,29992,29992,29991,29993,29992,29992,29981,29993,29982,29988,29986,29990,5247,5235,4936]} 1. e4 {[%emt 0:17:35]} c5 {[%emt 0:00:08]} 2. Nf3 {[%emt 0:00:15]} d6 {[%emt 0:00:06]} 3. d4 {[%emt 0:01:06]} cxd4 {[%emt 0:00:10]} 4. Nxd4 {[%emt 0:00:05]} Nf6 {[%emt 0:00:19]} 5. Nc3 {[%emt 0:00:08]} a6 {[%emt 0:00:05]} 6. Bg5 {[%emt 0:00:05]} e6 {[%emt 0:00:22]} 7. Qd2 {[%emt 0:00:05]} h6 {[%emt 0:00:58]} 8. Bxf6 {[%emt 0:00:29]} Qxf6 {[%emt 0:00:05]} 9. O-O-O {[%emt 0:00:07]} Bd7 {[%emt 0:07:29]} 10. f4 {[%emt 0:00:43]} Nc6 {[%emt 0:00:56]} 11. Nb3 {[%emt 0:09:10][%cal Oe4e5]} Qd8 {[%emt 0:09:33] B67: Sicilian: Richter-Rauzer: 7...a6 8 0-0-0 Bd7, lines without 9 f4 Be7.} 12. h4 {[%emt 0:00:56]} Be7 {[%emt 0:07:25]} 13. h5 {[%emt 0:00:51]} ({Better is} 13. Kb1 $11) 13... b5 $15 {[%emt 0:03:50][%cal Bb7b5,Bb5b4][%mdl 32] Black is slightly better.} 14. Kb1 {[%emt 0:00:18]} b4 {[%emt 0:04:14]} 15. Ne2 {[%emt 0:00:21]} a5 {[%emt 0:20:50] [#]} 16. Rh3 $146 {[%emt 0:04:28]} ({Predecessor:} 16. Nbd4 Qb6 17. Nxc6 Bxc6 18. Nd4 Bxe4 19. Bb5+ Kd8 20. Qe3 Qb7 21. Rhe1 Bd5 22. Ba4 {1-0 (31) Trois,F (2310)-Emma,J (2420) Montevideo 1976}) 16... e5 {[%emt 0:04:14]} 17. Rd3 {[%emt 0:10:32][%cal Ob3c5]} a4 {[%emt 0:02:02]} (17... O-O $17 {...Qb8 is the strong threat.} 18. Nc5 Bc8) 18. Nbc1 {[%emt 0:04:20]} (18. Nc5 $1 $15 Bc8 19. Rxd6 Bxd6 20. Qxd6 Qxd6 21. Rxd6) 18... Qb6 {[%emt 0:02:44]} (18... O-O $19 {aiming for ...Bg4.} 19. f5 Qb6) 19. Ng3 {[%emt 0:04:50]} exf4 {[%emt 0:08:02]} 20. Nf5 {[%emt 0:06:41]} Bxf5 {[%emt 0:00:05]} 21. exf5 {[%emt 0:00:03]} O-O {[%emt 0:08:13]} 22. Qxf4 {[%emt 0:00:39]} (22. Ne2 $17 {might work better.}) 22... a3 {[%emt 0:05:13] Threatens to win with ...Bg5.} 23. b3 {[%emt 0:01:36]} (23. Rg3 $17 {is a better defense.} Kh8 24. f6 (24. Qg4 Bg5 $17) 24... Bxf6 25. Rxd6) 23... Qc5 {[%emt 0:02:36]} (23... Bg5 $1 $19 {[%cal Rg5f4]} 24. Qg3 Rfe8) 24. Rg3 {[%emt 0:04:38]} (24. Qe3 $17) 24... Qe5 $2 {[%emt 0:03:29]} ({Black should play} 24... Bg5 $19 25. Qxd6 Qxd6 26. Rxd6 Bf4 27. Rxc6 Bxg3) 25. Qxe5 {[%emt 0:00:49]} dxe5 {[%emt 0:00:10]} 26. Bc4 {[%emt 0:04:13]} Rad8 {[%emt 0:00:52] Inhibits Rd7.} 27. Rgd3 {[%emt 0:03:14]} (27. Rxd8 $15 Rxd8 28. Rd3) 27... Nd4 $1 $36 {[%emt 0:01:17][%mdl 2048] Keeping White busy.} 28. Re1 {[%emt 0:01:41]} Bf6 {[%emt 0:00:56]} (28... Nxf5 $2 29. Rxe5 Nd6 30. Rxe7 $18) 29. g4 {[%emt 0:00:45]} Rfe8 {[%emt 0:00:54]} 30. Re4 {[%emt 0:00:48]} Bg5 {[%emt 0:02:17]} 31. c3 {[%emt 0:04:01]} bxc3 {[%emt 0:00:32]} 32. Rxc3 {[%emt 0:00:19]} Kf8 {[%emt 0:03:58]} 33. Rh3 {[%emt 0:03:37]} Re7 {[%emt 0:02:24]} 34. Nd3 {[%emt 0:01:44]} f6 {[%emt 0:00:03]} 35. Nc5 {[%emt 0:00:38] [#]} Rc7 $2 {[%emt 0:00:44][%mdl 8192] [#]} (35... Ke8 $1 $17 {stays on course.} 36. Rd3 Rc7 37. Rexd4 (37. b4 Rb8 $17) 37... Rxd4 38. Rxd4 exd4) 36. Rxd4 $1 $18 {[%emt 0:01:02][%mdl 512]} Rxd4 {[%emt 0:00:30]} 37. Ne6+ {[%emt 0:00:27]} Ke7 {[%emt 0:00:09] Strongly threatening ...Rd1+.} 38. Nxc7 {[%emt 0:02:17]} Rd1+ {[%emt 0:00:58]} 39. Kc2 {[%emt 0:00:00]} Rd2+ {[%emt 0:00:24]} 40. Kc3 {[%emt 0:01:04]} ({Don't do} 40. Kb1 e4 41. Rh1 Kd7 $18) 40... Rxa2 {[%emt 0:00:02]} 41. b4 {[%emt 0:00:09]} Rb2 {[%emt 0:00:29]} 42. Rd3 {[%emt 0:00:22] Prevents Bd2+.} Bh4 {[%emt 0:00:50]} (42... e4 $142) 43. Rd1 {[%emt 0:00:32]} Bf2 {[%emt 0:00:19]} 44. Ne6 {[%emt 0:02:00] And now Bb5 would win.} e4 {[%emt 0:00:16]} 45. Nf4 {[%emt 0:02:37]} Bg3 {[%emt 0:01:08]} 46. Ng6+ {[%emt 0:00:36]} Ke8 {[%emt 0:00:05]} 47. Bb5+ {[%emt 0:00:26]} Kf7 {[%emt 0:00:14]} 48. Rd7+ {[%emt 0:00:17]} Ke8 {[%emt 0:00:58]} 49. Rd3+ {[%emt 0:01:35]} Kf7 {[%emt 0:00:24]} 50. Rxg3 {[%emt 0:00:12]} Rf2 {[%emt 0:00:15]} 51. Re3 {[%emt 0:01:00]} a2 {[%emt 0:00:58]} 52. Bc4+ {[%emt 0:00:11]} (52. Re1 $142 Rg2 53. Ra1 Rh2 {[#]} 54. Rxa2 $3 {[%mdl 512]} Rxa2 55. Bc4+ Ke8 56. Bxa2 Kd8 57. Kd4) 52... Ke8 {[%emt 0:00:04]} 53. Rxe4+ {[%emt 0:00:15] What a bad dream for Black.  Weighted Error Value: White=0.29 (precise) /Black=0.67} 1-0

[Event "II Llinars Open 2022"]
[Site "Llinars del Valles"]
[Date "2022.06.28"]
[Round "4.8"]
[White "Jimenez Ruano, Adrian"]
[Black "Lozano Casasayas, Marc"]
[Result "1/2-1/2"]
[ECO "D12"]
[WhiteElo "2263"]
[BlackElo "1822"]
[Annotator "TA"]
[PlyCount "152"]
[EventDate "2022.06.24"]
[EventType "swiss"]
[EventCountry "ESP"]
[SourceTitle "playchess.com"]
[Source "ChessBase"]
[SourceQuality "1"]
[TimeControl "5400+30"]

{[%evp 18,152,0,-27,0,-14,-17,-35,-33,-35,46,54,150,152,152,145,138,147,151,153,151,90,96,96,96,97,101,76,80,71,251,263,249,248,265,263,250,39,39,39,39,39,64,39,39,42,39,39,40,31,31,31,31,30,36,29,50,50,50,50,50,50,50,50,50,50,50,50,50,50,50,50,50,50,50,45,55,50,50,50,50,50,50,50,50,50,49,50,51,50,50,50,51,50,50,50,50,28,44,44,47,47,97,84,92,99,101,107,104,35,35,35,36,24,30,0,0,0,0,0,0,0,0,0,0,0,0,0,0,0,0,0,0,-8,-8,-8,-8]} 1. d4 {[%emt 0:00:02]} d5 {[%emt 0:00:05]} 2. c4 {[%emt 0:00:11]} c6 {[%emt 0:00:01]} 3. Nf3 {[%emt 0:00:12]} Nf6 {[%emt 0:00:02]} 4. e3 {[%emt 0:00:29]} Bf5 {[%emt 0:01:31]} 5. cxd5 {[%emt 0:02:40]} cxd5 {[%emt 0:00:01]} 6. Qb3 {[%emt 0:00:18]} Qc7 {[%emt 0:00:06]} 7. Bd2 {[%emt 0:00:12]} e6 {[%emt 0:00:02]} 8. Nc3 {[%emt 0:00:31]} Nc6 {[%emt 0:00:52]} 9. Rc1 {[%emt 0:00:34]} Be7 {[%emt 0:00:30]} 10. Bb5 {[%emt 0:00:15]} O-O {[%emt 0:00:11] D12: Slav Defence: 3 Nf3 Nf6 4 e3 Bf5.} 11. O-O {[%emt 0:00:55][%cal Of3e5]} a6 {[%emt 0:06:04]} 12. Bxc6 {[%emt 0:01:49]} bxc6 {[%emt 0:00:02] Black is slightly better.} 13. Na4 {[%emt 0:00:38]} Ne4 {[%emt 0:01:18]} (13... Nd7 $15) 14. Qb6 $14 {[%emt 0:03:46] [#]} Qd8 $146 {[%emt 0:13:20]} (14... Qc8 $14) ({Predecessor:} 14... Rfc8 15. Qxc7 Rxc7 16. Ba5 Rb7 17. Rxc6 Nd6 18. Nb6 Rab8 19. Ne5 Nc4 20. Nexc4 dxc4 21. Nxc4 {1-0 (67) Rakov,P (2175)-Zhu,Z (1581) Victoria 2009}) 15. Qxd8 $16 {[%emt 0:10:29]} (15. Qxc6 $6 Rb8 $11) (15. Rxc6 Nxd2 16. Nxd2 Bd3 17. Qxd8 Raxd8 $17) 15... Bxd8 {[%emt 0:08:28]} 16. Bb4 {[%emt 0:00:35]} ({Weaker is} 16. Rxc6 Nxd2 17. Nxd2 Bd3 $17) 16... Re8 {[%emt 0:07:22]} 17. Ne5 {[%emt 0:00:55] Pair of Knights!} a5 {[%emt 0:01:45]} 18. Ba3 {[%emt 0:04:57]} Bf6 {[%emt 0:02:55]} 19. f3 {[%emt 0:04:07]} ({Resist} 19. Rxc6 $6 Bxe5 20. dxe5 Nd2 $14) (19. Rfe1 $142) 19... Nd2 {[%emt 0:02:21]} 20. Rfd1 {[%emt 0:02:14]} Bxe5 {[%emt 0:00:43]} 21. Rxd2 {[%emt 0:00:22]} ({But not} 21. dxe5 $6 Nc4 $11) 21... Bf6 {[%emt 0:00:32]} 22. g4 {[%emt 0:14:08]} Bg6 {[%emt 0:01:32]} 23. Rxc6 {[%emt 0:03:50]} e5 $2 {[%emt 0:05:15]} (23... Rac8 $16 24. Rxc8 Rxc8) 24. dxe5 $18 {[%emt 0:03:05]} Rxe5 {[%emt 0:01:41]} 25. Nb6 {[%emt 0:00:41][%csl LRa8,LRd5]} Rd8 {[%emt 0:02:09]} 26. f4 {[%emt 0:00:02]} Rxe3 {[%emt 0:05:42]} 27. Nxd5 $2 {[%emt 0:00:38]} ({White should try} 27. g5 $18) 27... Re1+ $14 {[%emt 0:00:15]} 28. Kf2 {[%emt 0:02:28]} Bh4+ {[%emt 0:00:56]} 29. Kg2 {[%emt 0:00:01] [#] aiming for Kh3.} Be4+ $1 {[%emt 0:02:23]} 30. Kh3 {[%emt 0:00:04] Active counter play!} h6 {[%emt 0:10:47]} 31. Kxh4 {[%emt 0:01:25][%cal Od5f6] White wants to mate with Nf6+!} Rxd5 {[%emt 0:02:02]} 32. Rxd5 {[%emt 0:00:38]} Bxd5 {[%emt 0:00:04][%mdl 4096] Endgame KRB-KRB} 33. Rc8+ {[%emt 0:01:03]} Kh7 {[%emt 0:00:24]} 34. Rc5 {[%emt 0:00:22][%csl LRa5,LRd5]} Bxa2 {[%emt 0:00:40]} 35. Rxa5 {[%emt 0:00:06]} Bb3 {[%emt 0:00:59]} 36. Rc5 {[%emt 0:02:23]} Rg1 {[%emt 0:02:47]} 37. Rc3 {[%emt 0:02:51]} Bd1 {[%emt 0:01:54]} 38. h3 {[%emt 0:01:22]} Be2 {[%emt 0:03:07]} 39. Bc5 {[%emt 0:05:23]} Rh1 {[%emt 0:02:06]} 40. b4 {[%emt 0:00:42]} Bf1 {[%emt 0:00:24]} 41. Rg3 {[%emt 0:06:15]} f6 {[%emt 0:06:23] ( -> ...g5+)} 42. f5 {[%emt 0:00:42]} Rh2 {[%emt 0:01:47]} 43. Rb3 {[%emt 0:02:17] Strongly threatening b5.} Bb5 {[%emt 0:01:37]} 44. Kg3 {[%emt 0:00:36]} Rh1 {[%emt 0:00:30]} 45. Ra3 {[%emt 0:09:06]} Bf1 {[%emt 0:01:25]} 46. Ra7 {[%emt 0:00:17] Threatens to win with Bf8.} Kg8 {[%emt 0:00:27] Inhibits Bf8.} 47. Ra8+ {[%emt 0:00:06]} Kh7 {[%emt 0:00:13]} 48. Bf8 {[%emt 0:01:08]} Kg8 {[%emt 0:00:01]} 49. h4 {[%emt 0:03:48]} Rh3+ {[%emt 0:01:28]} 50. Kf2 {[%emt 0:00:38]} Bc4 {[%emt 0:00:40]} 51. Bd6+ {[%emt 0:00:38]} Kh7 {[%emt 0:00:16]} 52. Rc8 {[%emt 0:03:46]} Ba6 {[%emt 0:01:08]} 53. Rc6 {[%emt 0:00:17]} Bb5 {[%emt 0:00:16]} 54. Rc5 {[%emt 0:00:09]} Be8 {[%emt 0:01:21]} 55. Rc8 {[%emt 0:01:56]} Bb5 {[%emt 0:01:12]} 56. Bg3 {[%emt 0:00:34] Hoping for Rc1.} Rh1 {[%emt 0:00:10] Against Rc1} 57. Rb8 {[%emt 0:00:32]} Bc4 {[%emt 0:00:20][%cal Oh6h5]} 58. b5 {[%emt 0:01:00]} Rb1 {[%emt 0:00:17]} 59. b6 {[%emt 0:00:01]} Rb3 {[%emt 0:00:34]} (59... Bd5 $14) 60. Bc7 {[%emt 0:01:59]} Bd5 {[%emt 0:01:45]} 61. Rd8 {[%emt 0:00:53]} Bc6 {[%emt 0:00:30][%cal Oh6h5] [#]} 62. Rd6 $1 {[%emt 0:00:26]} Bb7 {[%emt 0:00:22]} 63. Rd4 {[%emt 0:01:11]} ({Better is} 63. Bd8 $16 {[%cal Od8f6] Black must now prevent Bxf6!} Be4 64. Re6) 63... h5 {[%emt 0:00:42]} 64. gxh5 {[%emt 0:06:11]} Rf3+ {[%emt 0:00:14]} 65. Ke1 {[%emt 0:00:31]} Rxf5 {[%emt 0:00:14]} 66. Bd8 {[%emt 0:00:19]} Re5+ {[%emt 0:00:48] The position is equal.} 67. Kf2 {[%emt 0:00:19]} Rd5 {[%emt 0:00:54] Against Rd7} 68. Rxd5 {[%emt 0:00:24]} Bxd5 $11 {[%emt 0:00:01] KB-KB} 69. Kg3 {[%emt 0:00:49]} Kh6 {[%emt 0:00:10]} 70. Kg4 {[%emt 0:00:18]} Be6+ {[%emt 0:00:17]} 71. Kf4 {[%emt 0:00:32] Intending b7 and mate.} Bc8 {[%emt 0:00:04]} 72. Kg3 {[%emt 0:00:51]} Kxh5 {[%emt 0:00:12]} 73. Be7 {[%emt 0:00:07]} g5 {[%emt 0:00:15]} 74. hxg5 {[%emt 0:00:04]} fxg5 {[%emt 0:00:02]} 75. Bxg5 {[%emt 0:00:09]} Kxg5 {[%emt 0:00:04]} 76. b7 {[%emt 0:00:05]} Bxb7 {[%emt 0:00:05] Black escapes into a draw.  Weighted Error Value: White=0.13 (very precise) /Black=0.15 (very precise)} 1/2-1/2

[Event "II Llinars Open 2022"]
[Site "Llinars del Valles"]
[Date "2022.06.29"]
[Round "5.1"]
[White "Garcia Ramos, Daniel"]
[Black "Parra Ordorica, Arnau"]
[Result "1-0"]
[ECO "C26"]
[WhiteElo "2441"]
[BlackElo "2001"]
[Annotator "TA"]
[PlyCount "65"]
[EventDate "2022.06.24"]
[EventType "swiss"]
[EventCountry "ESP"]
[SourceTitle "playchess.com"]
[Source "ChessBase"]
[SourceQuality "1"]
[TimeControl "5400+30"]

{[%evp 9,65,-5,0,-14,-2,-9,1,0,0,0,0,-7,18,4,14,-2,-1,-1,63,42,56,61,127,127,124,124,167,149,150,160,147,142,146,146,139,141,142,148,139,102,260,253,239,252,235,219,437,447,439,439,446,446,445,436,436,435,426,409]} 1. e4 {[%emt 0:00:01]} e5 {[%emt 0:00:06]} 2. Nc3 {[%emt 0:01:33]} Nf6 {[%emt 0:00:35]} 3. g3 {[%emt 0:00:06]} Bc5 {[%emt 0:00:06]} 4. Bg2 {[%emt 0:00:07]} a6 {[%emt 0:02:01]} 5. Nge2 {[%emt 0:00:10]} Nc6 {[%emt 0:00:13][%cal Bb8c6,Bc6d4,Bd4e2][%mdl 32]} 6. h3 {[%emt 0:01:28] C26: Vienna Game: 2...Nf6, sidelines .} d6 {[%emt 0:01:15]} 7. d3 {[%emt 0:00:34]} Be6 {[%emt 0:00:46]} 8. Nd5 {[%emt 0:01:16] The position is equal.} Nd4 {[%emt 0:16:48]} 9. c3 {[%emt 0:07:25]} Nxe2 {[%emt 0:00:32]} 10. Qxe2 {[%emt 0:00:04]} c6 {[%emt 0:00:16]} 11. Nxf6+ {[%emt 0:00:43]} Qxf6 {[%emt 0:00:23] [#]} 12. Be3 $146 {[%emt 0:00:33]} ({Predecessor:} 12. O-O O-O 13. Kh2 Qe7 14. f4 f6 15. f5 Bf7 16. g4 d5 17. g5 dxe4 18. Bxe4 {1-0 (42) Nuber,B (2349)-Tournier,M (2319) Bayern 2014}) 12... Bxe3 {[%emt 0:03:44]} 13. Qxe3 {[%emt 0:00:55]} d5 {[%emt 0:00:39]} (13... Qd8 $11) 14. exd5 $1 $14 {[%emt 0:04:34]} cxd5 {[%emt 0:06:35]} 15. O-O {[%emt 0:00:55]} Qf5 {[%emt 0:12:57]} ({Black should try} 15... d4 $14 16. Qe4 dxc3) 16. g4 $16 {[%emt 0:07:43]} Qf4 {[%emt 0:00:34]} 17. Rfe1 {[%emt 0:00:14][%cal Bf1e1,Be1e5,Be5c5,Bc5a5,Ba5a6][%mdl 32]} d4 {[%emt 0:05:04]} 18. Qxe5 {[%emt 0:18:27]} Qxe5 {[%emt 0:01:10]} 19. Rxe5 {[%emt 0:00:51]} dxc3 {[%emt 0:00:10]} 20. bxc3 {[%emt 0:00:04]} O-O-O {[%emt 0:00:18]} 21. Rb1 {[%emt 0:10:17]} Rxd3 {[%emt 0:02:33]} 22. Rc5+ {[%emt 0:05:02]} ({Don't do} 22. Bxb7+ $6 Kd7 $11) ({Don't take} 22. Rxb7 Rxc3 23. Ra5 Rc7 $14) 22... Kd7 {[%emt 0:01:03]} 23. Rxb7+ {[%emt 0:08:18]} Kd6 {[%emt 0:00:28]} 24. Ra5 {[%emt 0:04:41] White is more active.} Rxc3 $2 {[%emt 0:01:51] Black cannot hold the game after this.} (24... Bc4 $16 {was worth a try.}) 25. Rxa6+ $18 {[%emt 0:04:43]} Ke5 {[%emt 0:00:17]} 26. Rb5+ {[%emt 0:00:30]} Kf6 {[%emt 0:01:03] [#]} 27. f4 $1 {[%emt 0:01:57][%cal Bf2f4,Bf4f5][%mdl 32] Strongly threatening f5.} g6 {[%emt 0:02:49]} (27... Rc1+ {was called for.} 28. Kh2 Ke7 29. Ra7+ Bd7) 28. f5 $1 {[%emt 0:01:13] White is clearly winning.} gxf5 {[%emt 0:00:06]} 29. gxf5 {[%emt 0:00:19]} Rc1+ {[%emt 0:00:12]} 30. Kh2 {[%emt 0:00:11]} Rc2 {[%emt 0:00:17] [#] Threatens to win with ...Rg8.} 31. fxe6 {[%emt 0:00:07]} fxe6 {[%emt 0:00:20]} 32. Rb3 {[%emt 0:00:32]} Rg8 {[%emt 0:00:43]} 33. Rg3 {[%emt 0:00:06] Weighted Error Value: White=0.04 (flawless) /Black=0.27 (precise)} 1-0

[Event "II Llinars Open 2022"]
[Site "Llinars del Valles"]
[Date "2022.06.29"]
[Round "5.2"]
[White "Valenzuela Gomez, Fernando"]
[Black "Ayats Llobera, Gerard"]
[Result "0-1"]
[ECO "C06"]
[WhiteElo "2373"]
[BlackElo "2423"]
[Annotator "TA"]
[PlyCount "58"]
[EventDate "2022.06.24"]
[EventType "swiss"]
[EventCountry "ESP"]
[SourceTitle "playchess.com"]
[Source "ChessBase"]
[SourceQuality "1"]
[TimeControl "5400+30"]

{[%evp 15,58,14,24,4,39,37,31,30,26,24,22,0,35,31,50,52,40,43,48,45,51,12,0,-125,-21,-18,-25,-26,0,-29,0,-22,-23,-21,-6,-3,-6,-7,0,-29980,-29977,-29995,-29996,-29996,-29997]} 1. e4 {[%emt 0:06:15]} e6 {[%emt 0:00:05]} 2. d4 {[%emt 0:00:19]} d5 {[%emt 0:00:03]} 3. Nd2 {[%emt 0:00:35]} Be7 {[%emt 0:00:30]} 4. Ngf3 {[%emt 0:01:00]} Nf6 {[%emt 0:00:08]} 5. e5 {[%emt 0:00:05]} Nfd7 {[%emt 0:00:02]} 6. Bd3 {[%emt 0:00:15]} c5 {[%emt 0:00:01]} 7. c3 {[%emt 0:00:08]} Nc6 {[%emt 0:00:04]} 8. O-O {[%emt 0:00:30]} a5 {[%emt 0:00:02]} 9. a4 {[%emt 0:00:05] is now more promising than 9.Re1. C06: French Tarrasch: 3...Nf6 4 e5 Nfd7 5 Bd3 main lines.} Qb6 {[%emt 0:00:04][%cal Rc5d4]} 10. dxc5 {[%emt 0:06:19]} Bxc5 {[%emt 0:04:04]} 11. Qe2 {[%emt 0:05:11] White is slightly better.} O-O {[%emt 0:01:17]} 12. Bb5 {[%emt 0:28:50]} Na7 {[%emt 0:06:16]} 13. Bd3 {[%emt 0:01:34][%cal Od3h7]} Nc6 {[%emt 0:01:49]} 14. Bc2 {[%emt 0:00:29]} (14. Bxh7+ {keeps more tension.} Kxh7 15. Ng5+ Kg6 16. Nc4) 14... f6 {[%emt 0:01:26]} 15. exf6 {[%emt 0:00:10]} Nxf6 {[%emt 0:00:09][%cal Oe6e5]} 16. Nb3 {[%emt 0:00:16]} Bd6 {[%emt 0:01:00]} 17. Be3 {[%emt 0:01:32] [#]} Qd8 $146 {[%emt 0:00:05]} ({Predecessor:} 17... Qc7 18. Nbd4 e5 19. Nb5 Qe7 20. Nxd6 Qxd6 21. h3 Bd7 22. Rad1 Be8 23. Nh4 Ne7 24. f4 e4 25. g4 Qc7 {½-½ (56) Handel,H (2387)-Kamp,C (2313) GER email 2007}) 18. Rad1 {[%emt 0:03:52]} e5 $1 {[%emt 0:04:48] Inhibits Nbd4. And now ...e4 would win.} 19. c4 {[%emt 0:06:37]} (19. h3 $11 {remains equal.}) 19... d4 {[%emt 0:07:06]} ({Black should play} 19... e4 $17 20. Ng5 (20. Nfd4 $2 Bxh2+ 21. Kh1 Ng4 $19) 20... Nb4 21. Rxd5 (21. cxd5 Bxh2+ 22. Kh1 Bd6 $17) 21... Nfxd5 22. cxd5 Nxc2 23. Qxc2 Bf4 24. Bxf4 Rxf4 25. Nxe4 Bf5) 20. Bg5 $11 {[%emt 0:03:21]} Qe8 {[%emt 0:38:57]} 21. Nbd2 {[%emt 0:02:49]} Be6 {[%emt 0:06:28]} 22. Rfe1 {[%emt 0:03:23]} Kh8 {[%emt 0:01:10]} 23. c5 {[%emt 0:07:05]} Bxc5 {[%emt 0:05:09]} 24. Nxe5 {[%emt 0:00:57]} d3 {[%emt 0:00:39]} 25. Nxd3 {[%emt 0:07:57]} (25. Qxd3 $2 Nb4 26. Qb5 (26. Qc3 $2 Bxf2+ 27. Kh1 Bxe1 $19) 26... Qxb5 27. axb5 Nxc2 $19) 25... Nd4 {[%emt 0:00:09][%csl LRc2,LRe2]} 26. Qf1 {[%emt 0:00:55]} Bd6 $36 {[%emt 0:03:18][%mdl 2048] Threatens to win with ...Bxh2+. Black has good play.} (26... Nxc2 $2 27. Nxc5 Nxe1 28. Rxe1 $18) 27. Bb1 $2 {[%emt 0:05:37][%mdl 8192] [#]} (27. Bf4 $11 Rd8 28. Rc1) 27... Bxh2+ $1 {[%emt 0:01:22][%mdl 576] Decoy. Black mates.} 28. Kxh2 {[%emt 0:00:03]} (28. Kh1 Qh5) 28... Qh5+ {[%emt 0:00:09]} 29. Kg1 {[%emt 0:00:03] [#]} Ng4 $1 {[%emt 0:00:34] Weighted Error Value: White=0.48/Black=0.18 (very precise)} ({Not} 29... Qxg5 30. Ne5 Qf4 31. Qd3 $11 (31. Ndf3 Nxf3+ 32. Nxf3 Bc4 $15)) 0-1